[Event "*** SCC Grand Prix: Titled Tuesday Blitz"]
[Site "Chess.com"]
[Date "2020.07.14"]
[Round "5"]
[White "Miss_JJ20"]
[Black "Konavets"]
[Result "0-1"]
[WhiteElo "2290"]
[BlackElo "3043"]
[TimeControl "180+1"]
[EndTime "10:56:23 PDT"]
[Termination "Konavets won by resignation"]

1. d4 {[%clk 0:03:00.9]} 1... Nf6 {[%clk 0:02:58.3]} 2. c4 {[%clk 0:02:58.2]}
2... e6 {[%clk 0:02:58.2]} 3. Nf3 {[%clk 0:02:57]} 3... d5 {[%clk 0:02:57.9]} 4.
g3 {[%clk 0:02:56.6]} 4... Bb4+ {[%clk 0:02:57.5]} 5. Bd2 {[%clk 0:02:53.7]}
5... Be7 {[%clk 0:02:57.6]} 6. Bg2 {[%clk 0:02:51.2]} 6... O-O {[%clk
0:02:58.3]} 7. O-O {[%clk 0:02:50.5]} 7... c6 {[%clk 0:02:58.9]} 8. Nc3 {[%clk
0:02:43.3]} 8... dxc4 {[%clk 0:02:57.5]} 9. Bf4 {[%clk 0:01:47.7]} 9... b5
{[%clk 0:02:50.2]} 10. Ne5 {[%clk 0:01:46.9]} 10... Nd5 {[%clk 0:02:49]} 11. a4
{[%clk 0:01:37.8]} 11... b4 {[%clk 0:02:48.2]} 12. Ne4 {[%clk 0:01:21.2]} 12...
f5 {[%clk 0:02:45.4]} 13. Nc5 {[%clk 0:01:06.5]} 13... Bxc5 {[%clk 0:02:45.5]}
14. dxc5 {[%clk 0:01:06.6]} 14... Qe7 {[%clk 0:02:46.2]} 15. Nxc4 {[%clk
0:01:03.4]} 15... Qxc5 {[%clk 0:02:42.1]} 16. Rc1 {[%clk 0:01:03.4]} 16... Nxf4
{[%clk 0:02:33.6]} 17. gxf4 {[%clk 0:01:03.5]} 17... Qe7 {[%clk 0:02:27.2]} 18.
Qd6 {[%clk 0:00:52.3]} 18... Qxd6 {[%clk 0:02:25.1]} 19. Nxd6 {[%clk 0:00:52.4]}
19... Ba6 {[%clk 0:02:26]} 20. Rfe1 {[%clk 0:00:44.2]} 20... Rd8 {[%clk
0:02:25.6]} 21. Nc4 {[%clk 0:00:42.1]} 21... Nd7 {[%clk 0:02:17.4]} 22. Bxc6
{[%clk 0:00:35]} 22... Rab8 {[%clk 0:02:17.2]} 23. Bxd7 {[%clk 0:00:32.9]} 23...
Rxd7 {[%clk 0:02:16.7]} 24. b3 {[%clk 0:00:31.5]} 24... Rc8 {[%clk 0:02:09.9]}
25. Ne5 {[%clk 0:00:27.7]} 25... Rdc7 {[%clk 0:02:09.7]} 26. Rxc7 {[%clk
0:00:25.6]} 26... Rxc7 {[%clk 0:02:10.6]} 27. Rd1 {[%clk 0:00:24.1]} 27... h5
{[%clk 0:02:05.7]} 28. Rd4 {[%clk 0:00:16.3]} 28... Bxe2 {[%clk 0:01:54]} 29.
Rxb4 {[%clk 0:00:15.9]} 29... h4 {[%clk 0:01:52.4]} 30. Kg2 {[%clk 0:00:16.3]}
30... Rc2 {[%clk 0:01:44.1]} 31. Kh3 {[%clk 0:00:15.7]} 31... Bf1+ {[%clk
0:01:41.7]} 32. Kxh4 {[%clk 0:00:15.8]} 32... Rxf2 {[%clk 0:01:42.3]} 33. Rb8+
{[%clk 0:00:07.8]} 33... Kh7 {[%clk 0:01:42.4]} 34. h3 {[%clk 0:00:07.3]} 34...
Rxf4+ {[%clk 0:01:24.5]} 35. Kg3 {[%clk 0:00:07.4]} 35... Rd4 {[%clk 0:01:18.8]}
36. Nf3 {[%clk 0:00:08]} 36... Rd6 {[%clk 0:01:10.4]} 37. Kf4 {[%clk 0:00:08.3]}
37... Be2 {[%clk 0:00:55.1]} 38. Ng5+ {[%clk 0:00:07.1]} 38... Kg6 {[%clk
0:00:55.3]} 39. h4 {[%clk 0:00:06.4]} 39... Rd4+ {[%clk 0:00:50.1]} 40. Ke3
{[%clk 0:00:06.7]} 40... Rxh4 {[%clk 0:00:50.3]} 41. Kxe2 {[%clk 0:00:05.3]}
41... Kxg5 {[%clk 0:00:50.3]} 42. Rb7 {[%clk 0:00:06.2]} 42... g6 {[%clk
0:00:49.5]} 43. Rxa7 {[%clk 0:00:06.1]} 43... Rb4 {[%clk 0:00:49.4]} 44. a5
{[%clk 0:00:06.7]} 44... Rxb3 {[%clk 0:00:49.8]} 45. a6 {[%clk 0:00:07.1]} 45...
Ra3 {[%clk 0:00:50.4]} 46. Ra8 {[%clk 0:00:07.5]} 46... Kf4 {[%clk 0:00:50.7]}
47. Kd2 {[%clk 0:00:06.5]} 47... e5 {[%clk 0:00:51]} 48. Kc2 {[%clk 0:00:07.1]}
48... e4 {[%clk 0:00:51.6]} 49. Kb2 {[%clk 0:00:07.6]} 49... Ra5 {[%clk
0:00:52]} 50. Kb3 {[%clk 0:00:08]} 50... e3 {[%clk 0:00:52.2]} 51. Kb4 {[%clk
0:00:08.5]} 51... Ra1 {[%clk 0:00:51]} 52. Kb5 {[%clk 0:00:08.7]} 52... Kf3
{[%clk 0:00:51.5]} 53. a7 {[%clk 0:00:08]} 53... f4 {[%clk 0:00:51.5]} 54. Kb6
{[%clk 0:00:08.4]} 54... e2 {[%clk 0:00:51.8]} 55. Rg8 {[%clk 0:00:08.7]} 55...
e1=Q {[%clk 0:00:51.3]} 0-1

[Event "*** SCC Grand Prix: Titled Tuesday Blitz"]
[Site "Chess.com"]
[Date "2020.07.14"]
[Round "5"]
[White "Monmoransy"]
[Black "Siniauski"]
[Result "0-1"]
[WhiteElo "2620"]
[BlackElo "2471"]
[TimeControl "180+1"]
[EndTime "10:56:25 PDT"]
[Termination "Siniauski won by resignation"]

1. e4 {[%clk 0:03:00.9]} 1... e6 {[%clk 0:02:59.7]} 2. d4 {[%clk 0:03:00.1]}
2... d5 {[%clk 0:02:58.9]} 3. exd5 {[%clk 0:03:01]} 3... exd5 {[%clk 0:02:57.8]}
4. Nf3 {[%clk 0:03:01.9]} 4... Nc6 {[%clk 0:02:57.9]} 5. Bb5 {[%clk 0:03:01.5]}
5... Bd6 {[%clk 0:02:58]} 6. c4 {[%clk 0:03:01.4]} 6... dxc4 {[%clk 0:02:56.6]}
7. d5 {[%clk 0:03:02.3]} 7... a6 {[%clk 0:02:56.8]} 8. Ba4 {[%clk 0:03:02.5]}
8... b5 {[%clk 0:02:56.9]} 9. dxc6 {[%clk 0:03:03]} 9... bxa4 {[%clk 0:02:57.2]}
10. O-O {[%clk 0:03:03.6]} 10... Ne7 {[%clk 0:02:57.3]} 11. Nbd2 {[%clk
0:03:03.6]} 11... Be6 {[%clk 0:02:56]} 12. Qxa4 {[%clk 0:03:02.4]} 12... O-O
{[%clk 0:02:55.6]} 13. Nxc4 {[%clk 0:03:01.8]} 13... Bd5 {[%clk 0:02:52.1]} 14.
Nxd6 {[%clk 0:02:58.4]} 14... Qxd6 {[%clk 0:02:52.3]} 15. Bf4 {[%clk 0:02:57.8]}
15... Qg6 {[%clk 0:02:43.4]} 16. Bg3 {[%clk 0:02:51.9]} 16... Bxf3 {[%clk
0:02:39.2]} 17. gxf3 {[%clk 0:02:50.8]} 17... Nxc6 {[%clk 0:02:35.8]} 18. Rac1
{[%clk 0:02:33.3]} 18... Nd8 {[%clk 0:01:58.2]} 19. Rxc7 {[%clk 0:02:24.9]}
19... Ne6 {[%clk 0:01:57.7]} 20. Rc4 {[%clk 0:02:22.4]} 20... f5 {[%clk
0:01:53.3]} 21. Kh1 {[%clk 0:02:13.5]} 21... Qh6 {[%clk 0:01:26.9]} 22. Be5
{[%clk 0:02:07.8]} 22... Qh3 {[%clk 0:01:18.1]} 23. Qd1 {[%clk 0:01:59.2]} 23...
Rad8 {[%clk 0:01:09.1]} 24. Qe1 {[%clk 0:01:45.9]} 24... Qxf3+ {[%clk
0:01:06.4]} 25. Kg1 {[%clk 0:01:46.1]} 25... f4 {[%clk 0:00:24.7]} 26. Qe4
{[%clk 0:01:39.6]} 26... Ng5 {[%clk 0:00:23.5]} 27. Qxf3 {[%clk 0:01:34.8]}
27... Nxf3+ {[%clk 0:00:24.4]} 28. Kg2 {[%clk 0:01:35.3]} 28... Nxe5 {[%clk
0:00:25]} 29. Ra4 {[%clk 0:01:31.8]} 29... f3+ {[%clk 0:00:24.5]} 30. Kg3 {[%clk
0:01:29.3]} 30... Rd6 {[%clk 0:00:23.3]} 31. h4 {[%clk 0:01:27.1]} 31... Rg6+
{[%clk 0:00:23]} 32. Kh3 {[%clk 0:01:27]} 32... Nd3 {[%clk 0:00:18]} 33. b3
{[%clk 0:01:10.4]} 33... Rg2 {[%clk 0:00:17.2]} 34. h5 {[%clk 0:00:55.2]} 34...
Nxf2+ {[%clk 0:00:13.2]} 35. Kh4 {[%clk 0:00:55.4]} 35... g5+ {[%clk 0:00:08.8]}
36. hxg6 {[%clk 0:00:53.4]} 36... hxg6 {[%clk 0:00:09.7]} 37. Re1 {[%clk
0:00:48.4]} 37... Kg7 {[%clk 0:00:04.2]} 38. Re7+ {[%clk 0:00:42.8]} 38... Rf7
{[%clk 0:00:04.5]} 39. Rxf7+ {[%clk 0:00:41.8]} 39... Kxf7 {[%clk 0:00:05.4]}
40. Rf4+ {[%clk 0:00:41.7]} 40... Kg7 {[%clk 0:00:06]} 41. Ra4 {[%clk
0:00:36.3]} 41... Kh6 {[%clk 0:00:06.2]} 0-1

[Event "*** SCC Grand Prix: Titled Tuesday Blitz"]
[Site "Chess.com"]
[Date "2020.07.14"]
[Round "5"]
[White "vaishali2001"]
[Black "Nathan_Filgueiras"]
[Result "1-0"]
[WhiteElo "2608"]
[BlackElo "2411"]
[TimeControl "180+1"]
[EndTime "10:56:25 PDT"]
[Termination "vaishali2001 won by resignation"]

1. e4 {[%clk 0:03:00.9]} 1... c5 {[%clk 0:02:58.5]} 2. Nf3 {[%clk 0:02:58]} 2...
Nc6 {[%clk 0:02:58.5]} 3. d4 {[%clk 0:02:56.1]} 3... cxd4 {[%clk 0:02:59.4]} 4.
Nxd4 {[%clk 0:02:56.7]} 4... e5 {[%clk 0:02:59.9]} 5. Nb5 {[%clk 0:02:55.4]}
5... d6 {[%clk 0:02:59.8]} 6. N1c3 {[%clk 0:02:47.9]} 6... a6 {[%clk 0:02:59.9]}
7. Na3 {[%clk 0:02:47.5]} 7... b5 {[%clk 0:03:00]} 8. Nd5 {[%clk 0:02:47]} 8...
Nce7 {[%clk 0:03:00.6]} 9. c4 {[%clk 0:02:45.5]} 9... Nxd5 {[%clk 0:03:00.5]}
10. Qxd5 {[%clk 0:02:15.6]} 10... Be6 {[%clk 0:02:59.3]} 11. Qd3 {[%clk
0:02:06]} 11... b4 {[%clk 0:02:03]} 12. Nc2 {[%clk 0:01:56.1]} 12... a5 {[%clk
0:02:02.3]} 13. Be2 {[%clk 0:01:41.9]} 13... Nf6 {[%clk 0:02:01.4]} 14. O-O
{[%clk 0:01:28.6]} 14... Be7 {[%clk 0:02:00.8]} 15. Ne3 {[%clk 0:01:18.2]} 15...
O-O {[%clk 0:02:00.2]} 16. Rd1 {[%clk 0:01:14.5]} 16... Qc7 {[%clk 0:01:53.5]}
17. a3 {[%clk 0:01:07.3]} 17... Rfc8 {[%clk 0:01:46.6]} 18. axb4 {[%clk
0:01:03.6]} 18... axb4 {[%clk 0:01:47.5]} 19. Rxa8 {[%clk 0:01:04.2]} 19... Rxa8
{[%clk 0:01:48.4]} 20. Bd2 {[%clk 0:00:57.3]} 20... Qb7 {[%clk 0:01:40.4]} 21.
Nf5 {[%clk 0:00:53.4]} 21... Bf8 {[%clk 0:01:31.1]} 22. Nxd6 {[%clk 0:00:42.9]}
22... Bxd6 {[%clk 0:00:33.5]} 23. Qxd6 {[%clk 0:00:43.8]} 23... Qxe4 {[%clk
0:00:31.4]} 24. Bf3 {[%clk 0:00:32.1]} 24... Qc2 {[%clk 0:00:05.9]} 25. Rc1
{[%clk 0:00:31.9]} 25... Qa4 {[%clk 0:00:05.6]} 26. Bxa8 {[%clk 0:00:31.2]}
26... Qxa8 {[%clk 0:00:06.5]} 27. Qxe5 {[%clk 0:00:25.7]} 27... h5 {[%clk
0:00:06]} 28. Bxb4 {[%clk 0:00:23.7]} 28... Ng4 {[%clk 0:00:05.8]} 29. Qxh5
{[%clk 0:00:16.1]} 29... Qb8 {[%clk 0:00:04]} 30. Bc3 {[%clk 0:00:13.6]} 30...
Qc7 {[%clk 0:00:01.9]} 31. Qh4 {[%clk 0:00:13.1]} 31... Nh6 {[%clk 0:00:02]} 32.
b3 {[%clk 0:00:11.4]} 32... Nf5 {[%clk 0:00:02]} 33. Qe4 {[%clk 0:00:08.7]}
33... Qb7 {[%clk 0:00:02.9]} 34. Qxb7 {[%clk 0:00:08.3]} 1-0

[Event "*** SCC Grand Prix: Titled Tuesday Blitz"]
[Site "Chess.com"]
[Date "2020.07.14"]
[Round "5"]
[White "aloe_normansen"]
[Black "KingCrusher275"]
[Result "0-1"]
[WhiteElo "2215"]
[BlackElo "2371"]
[TimeControl "180+1"]
[EndTime "10:56:25 PDT"]
[Termination "KingCrusher275 won by resignation"]

1. e4 {[%clk 0:02:57.6]} 1... c5 {[%clk 0:02:59.9]} 2. Nf3 {[%clk 0:02:56.7]}
2... e6 {[%clk 0:03:00.4]} 3. d4 {[%clk 0:02:56.4]} 3... cxd4 {[%clk 0:03:01.3]}
4. Nxd4 {[%clk 0:02:56.6]} 4... Nc6 {[%clk 0:03:01.8]} 5. Nc3 {[%clk 0:02:56.6]}
5... Qc7 {[%clk 0:03:02.1]} 6. g3 {[%clk 0:02:55.8]} 6... a6 {[%clk 0:03:01.7]}
7. Bg2 {[%clk 0:02:55.4]} 7... d6 {[%clk 0:03:02.4]} 8. O-O {[%clk 0:02:54.1]}
8... Bd7 {[%clk 0:03:02.8]} 9. Kh1 {[%clk 0:02:48.8]} 9... Nf6 {[%clk
0:02:57.6]} 10. f4 {[%clk 0:02:48.2]} 10... Be7 {[%clk 0:02:56.6]} 11. Be3
{[%clk 0:02:47.4]} 11... O-O {[%clk 0:02:44.4]} 12. g4 {[%clk 0:02:46.4]} 12...
Nxd4 {[%clk 0:02:40.7]} 13. Bxd4 {[%clk 0:02:47.3]} 13... Bc6 {[%clk 0:02:36.1]}
14. g5 {[%clk 0:02:45.5]} 14... Nd7 {[%clk 0:02:34.1]} 15. Qh5 {[%clk 0:02:42]}
15... e5 {[%clk 0:01:41.2]} 16. Be3 {[%clk 0:02:21.1]} 16... g6 {[%clk 0:01:36]}
17. Qh6 {[%clk 0:02:15.7]} 17... f5 {[%clk 0:01:31]} 18. Rad1 {[%clk 0:01:12.6]}
18... exf4 {[%clk 0:01:19.2]} 19. Bxf4 {[%clk 0:01:09.6]} 19... Rf7 {[%clk
0:01:09.1]} 20. Qh3 {[%clk 0:00:46.1]} 20... Raf8 {[%clk 0:00:57.2]} 21. exf5
{[%clk 0:00:40.9]} 21... Rxf5 {[%clk 0:00:57.8]} 22. Qe3 {[%clk 0:00:30.3]}
22... Bxg5 {[%clk 0:00:47.2]} 23. Qe6+ {[%clk 0:00:22.1]} 23... Kh8 {[%clk
0:00:42.8]} 24. Nd5 {[%clk 0:00:14.3]} 24... Bxd5 {[%clk 0:00:37.5]} 25. Bxd5
{[%clk 0:00:14.3]} 25... Bxf4 {[%clk 0:00:35.2]} 26. Rde1 {[%clk 0:00:09.4]}
26... Nc5 {[%clk 0:00:33]} 27. Qe2 {[%clk 0:00:03]} 27... Rxd5 {[%clk 0:00:33]}
28. Rxf4 {[%clk 0:00:02.5]} 28... Rxf4 {[%clk 0:00:30.1]} 29. Qe8+ {[%clk
0:00:02.5]} 29... Kg7 {[%clk 0:00:26.8]} 30. Re7+ {[%clk 0:00:03.1]} 30... Qxe7
{[%clk 0:00:24.3]} 31. Qxe7+ {[%clk 0:00:04]} 31... Rf7 {[%clk 0:00:20.4]} 32.
Qe2 {[%clk 0:00:02.8]} 32... Re5 {[%clk 0:00:19.3]} 33. Qd2 {[%clk 0:00:02.4]}
33... Ne4 {[%clk 0:00:18.4]} 34. Qd4 {[%clk 0:00:02.7]} 34... Rf2 {[%clk
0:00:16.9]} 35. Kg1 {[%clk 0:00:02.5]} 35... Rd2 {[%clk 0:00:14.7]} 36. Qe3
{[%clk 0:00:02.9]} 36... Rxc2 {[%clk 0:00:13.6]} 37. Kf1 {[%clk 0:00:03.1]}
37... Nd2+ {[%clk 0:00:12.4]} 38. Ke2 {[%clk 0:00:03.3]} 38... Rxe3+ {[%clk
0:00:12.8]} 39. Kxe3 {[%clk 0:00:04.2]} 39... Rxb2 {[%clk 0:00:13.4]} 0-1

[Event "*** SCC Grand Prix: Titled Tuesday Blitz"]
[Site "Chess.com"]
[Date "2020.07.14"]
[Round "5"]
[White "TimofeevAr"]
[Black "keshka01"]
[Result "1-0"]
[WhiteElo "2790"]
[BlackElo "2562"]
[TimeControl "180+1"]
[EndTime "10:56:26 PDT"]
[Termination "TimofeevAr won by resignation"]

1. c4 {[%clk 0:03:00.9]} 1... g6 {[%clk 0:02:59.6]} 2. Nc3 {[%clk 0:02:59.9]}
2... Bg7 {[%clk 0:03:00.2]} 3. g3 {[%clk 0:03:00.3]} 3... c5 {[%clk 0:02:59.5]}
4. Bg2 {[%clk 0:03:00.6]} 4... Nc6 {[%clk 0:03:00.1]} 5. d3 {[%clk 0:03:01]}
5... d6 {[%clk 0:02:54]} 6. Bd2 {[%clk 0:03:00.7]} 6... Bd7 {[%clk 0:02:41.7]}
7. Nf3 {[%clk 0:02:54.5]} 7... Nf6 {[%clk 0:02:41.4]} 8. Qc1 {[%clk 0:02:53]}
8... O-O {[%clk 0:02:39.4]} 9. Bh6 {[%clk 0:02:51.6]} 9... Nd4 {[%clk
0:02:16.8]} 10. Bxg7 {[%clk 0:02:48.8]} 10... Kxg7 {[%clk 0:02:16]} 11. O-O
{[%clk 0:02:42.6]} 11... Bc6 {[%clk 0:02:07.2]} 12. e4 {[%clk 0:02:40.7]} 12...
Rb8 {[%clk 0:01:57.9]} 13. Nxd4 {[%clk 0:02:21.6]} 13... cxd4 {[%clk 0:01:58.8]}
14. Nd5 {[%clk 0:02:21.7]} 14... e6 {[%clk 0:01:25.7]} 15. Nxf6 {[%clk
0:02:20.1]} 15... Qxf6 {[%clk 0:01:26.6]} 16. f4 {[%clk 0:02:17.1]} 16... Rfc8
{[%clk 0:00:57.1]} 17. a4 {[%clk 0:02:10.9]} 17... d5 {[%clk 0:00:47.1]} 18.
cxd5 {[%clk 0:01:52.3]} 18... exd5 {[%clk 0:00:46.8]} 19. e5 {[%clk 0:01:51.6]}
19... Qe7 {[%clk 0:00:40.4]} 20. Qd2 {[%clk 0:01:50.2]} 20... Bd7 {[%clk
0:00:23.8]} 21. Bxd5 {[%clk 0:01:48.6]} 21... Rc5 {[%clk 0:00:23.6]} 22. Bc4
{[%clk 0:01:45.3]} 22... Rbc8 {[%clk 0:00:21.9]} 23. b3 {[%clk 0:01:43.9]} 23...
a6 {[%clk 0:00:20.9]} 24. a5 {[%clk 0:01:43.9]} 24... Bf5 {[%clk 0:00:19.7]} 25.
Rfe1 {[%clk 0:01:40.6]} 25... Qd7 {[%clk 0:00:19.4]} 26. Qe2 {[%clk 0:01:36.1]}
26... Bg4 {[%clk 0:00:19.4]} 27. Qe4 {[%clk 0:01:35.1]} 27... Bf5 {[%clk
0:00:19.5]} 28. Qf3 {[%clk 0:01:35.4]} 28... h5 {[%clk 0:00:18.9]} 29. Qf2
{[%clk 0:01:19.9]} 29... R5c7 {[%clk 0:00:18.7]} 30. Re2 {[%clk 0:01:19]} 30...
Bg4 {[%clk 0:00:18.8]} 31. Re4 {[%clk 0:01:19]} 31... Rd8 {[%clk 0:00:19.3]} 32.
Rae1 {[%clk 0:01:18.5]} 32... Bf5 {[%clk 0:00:19.3]} 33. e6 {[%clk 0:01:18.6]}
33... Qd6 {[%clk 0:00:15.8]} 34. e7 {[%clk 0:01:05.9]} 34... Re8 {[%clk
0:00:15.9]} 35. Qxd4+ {[%clk 0:01:05.6]} 35... Qxd4+ {[%clk 0:00:15.7]} 36. Rxd4
{[%clk 0:01:06.2]} 36... Rexe7 {[%clk 0:00:16.2]} 37. Rxe7 {[%clk 0:01:05.7]}
37... Rxe7 {[%clk 0:00:17.1]} 38. Kf2 {[%clk 0:01:06.1]} 38... Kf8 {[%clk
0:00:12.4]} 39. Rd5 {[%clk 0:01:02.1]} 39... Rc7 {[%clk 0:00:10.6]} 40. Ke3
{[%clk 0:01:00.4]} 40... Be6 {[%clk 0:00:08.2]} 41. Re5 {[%clk 0:00:59.7]} 41...
Bf5 {[%clk 0:00:08.1]} 42. Kd2 {[%clk 0:00:55.7]} 42... Rd7 {[%clk 0:00:08.2]}
43. Kc3 {[%clk 0:00:55.1]} 43... Rc7 {[%clk 0:00:08]} 44. b4 {[%clk 0:00:53.7]}
44... Bd7 {[%clk 0:00:06.3]} 45. Rc5 {[%clk 0:00:53.3]} 45... Rxc5 {[%clk
0:00:06]} 46. bxc5 {[%clk 0:00:53.1]} 46... Bc6 {[%clk 0:00:06.9]} 47. d4 {[%clk
0:00:53.1]} 47... Bg2 {[%clk 0:00:07.1]} 48. d5 {[%clk 0:00:53.1]} 48... f6
{[%clk 0:00:07.5]} 49. Kd4 {[%clk 0:00:53.3]} 49... Ke7 {[%clk 0:00:07]} 50. d6+
{[%clk 0:00:51.1]} 50... Kd7 {[%clk 0:00:07.4]} 51. Bd5 {[%clk 0:00:51.4]} 51...
Bxd5 {[%clk 0:00:06.7]} 52. Kxd5 {[%clk 0:00:51.7]} 52... g5 {[%clk 0:00:07.6]}
53. fxg5 {[%clk 0:00:51.4]} 53... fxg5 {[%clk 0:00:08.5]} 54. Ke5 {[%clk
0:00:51.9]} 54... g4 {[%clk 0:00:08.9]} 55. Kf5 {[%clk 0:00:51.9]} 55... b5
{[%clk 0:00:09.8]} 56. cxb6 {[%clk 0:00:50.9]} 1-0

[Event "*** SCC Grand Prix: Titled Tuesday Blitz"]
[Site "Chess.com"]
[Date "2020.07.14"]
[Round "5"]
[White "Barmen_EV"]
[Black "jonychess03"]
[Result "1-0"]
[WhiteElo "2434"]
[BlackElo "2299"]
[TimeControl "180+1"]
[EndTime "10:56:27 PDT"]
[Termination "Barmen_EV won on time"]

1. d4 {[%clk 0:03:00.9]} 1... Nf6 {[%clk 0:02:59.5]} 2. c4 {[%clk 0:03:01.8]}
2... e6 {[%clk 0:03:00]} 3. Nc3 {[%clk 0:03:01.6]} 3... Bb4 {[%clk 0:03:00.5]}
4. e3 {[%clk 0:03:01.6]} 4... c5 {[%clk 0:03:00.5]} 5. a3 {[%clk 0:03:01.4]}
5... Bxc3+ {[%clk 0:02:59.8]} 6. bxc3 {[%clk 0:03:02.3]} 6... d5 {[%clk
0:02:57.8]} 7. Bd3 {[%clk 0:03:03.2]} 7... O-O {[%clk 0:02:57.1]} 8. cxd5 {[%clk
0:03:02.9]} 8... exd5 {[%clk 0:02:52.8]} 9. Ne2 {[%clk 0:03:03.2]} 9... b6
{[%clk 0:02:52.2]} 10. O-O {[%clk 0:03:02.1]} 10... Nc6 {[%clk 0:02:50.2]} 11.
f3 {[%clk 0:03:00.9]} 11... Re8 {[%clk 0:02:48.2]} 12. Ng3 {[%clk 0:03:00.6]}
12... cxd4 {[%clk 0:02:47.7]} 13. cxd4 {[%clk 0:03:00.3]} 13... Bb7 {[%clk
0:02:42.2]} 14. Ra2 {[%clk 0:03:00.5]} 14... Na5 {[%clk 0:02:41.4]} 15. Raf2
{[%clk 0:03:00]} 15... Rc8 {[%clk 0:02:37.1]} 16. h3 {[%clk 0:02:49.6]} 16... a6
{[%clk 0:02:36.8]} 17. Nf5 {[%clk 0:02:38.4]} 17... b5 {[%clk 0:02:31.2]} 18. e4
{[%clk 0:02:32.1]} 18... dxe4 {[%clk 0:02:31]} 19. fxe4 {[%clk 0:02:32.5]} 19...
Bxe4 {[%clk 0:02:26]} 20. Bg5 {[%clk 0:02:12.2]} 20... Bxf5 {[%clk 0:02:05.4]}
21. Bxf5 {[%clk 0:02:13.1]} 21... Rc6 {[%clk 0:02:04.6]} 22. Bb1 {[%clk
0:01:28.4]} 22... Nc4 {[%clk 0:01:54.1]} 23. Qd3 {[%clk 0:01:06.3]} 23... Qd7
{[%clk 0:00:52.8]} 24. Rxf6 {[%clk 0:01:00.3]} 24... Rxf6 {[%clk 0:00:53.7]} 25.
Qxh7+ {[%clk 0:00:59.7]} 25... Kf8 {[%clk 0:00:47.6]} 26. Qh8+ {[%clk
0:01:00.6]} 26... Ke7 {[%clk 0:00:46.6]} 27. Qxg7 {[%clk 0:01:01.5]} 27... Qxd4+
{[%clk 0:00:46.4]} 28. Kh1 {[%clk 0:01:01.8]} 28... Kd7 {[%clk 0:00:24.1]} 29.
Bxf6 {[%clk 0:00:56.2]} 29... Qd5 {[%clk 0:00:20.6]} 30. Bf5+ {[%clk 0:00:51.5]}
30... Kc6 {[%clk 0:00:18.4]} 31. Bg4 {[%clk 0:00:34]} 31... Kb6 {[%clk
0:00:13.5]} 32. Bd4+ {[%clk 0:00:33.2]} 32... Ka5 {[%clk 0:00:11.3]} 33. Bc3+
{[%clk 0:00:30.4]} 33... Ka4 {[%clk 0:00:08.5]} 34. Bb4 {[%clk 0:00:30.3]} 34...
Ne3 {[%clk 0:00:07.2]} 35. Bf3 {[%clk 0:00:22.5]} 35... Qe5 {[%clk 0:00:04.8]}
36. Qh7 {[%clk 0:00:17.5]} 36... a5 {[%clk 0:00:02]} 37. Bd1+ {[%clk 0:00:15.4]}
1-0

[Event "*** SCC Grand Prix: Titled Tuesday Blitz"]
[Site "Chess.com"]
[Date "2020.07.14"]
[Round "5"]
[White "amatatanav"]
[Black "GuuBol"]
[Result "1-0"]
[WhiteElo "2468"]
[BlackElo "2239"]
[TimeControl "180+1"]
[EndTime "10:56:28 PDT"]
[Termination "amatatanav won by resignation"]

1. e4 {[%clk 0:03:00.9]} 1... c5 {[%clk 0:02:59.7]} 2. Ne2 {[%clk 0:03:00.7]}
2... d6 {[%clk 0:02:57.2]} 3. g3 {[%clk 0:03:00.4]} 3... Nf6 {[%clk 0:02:56.6]}
4. Bg2 {[%clk 0:02:59.6]} 4... Nc6 {[%clk 0:02:48.7]} 5. c3 {[%clk 0:02:59.9]}
5... g6 {[%clk 0:02:47.1]} 6. d4 {[%clk 0:03:00.3]} 6... cxd4 {[%clk 0:02:46.5]}
7. cxd4 {[%clk 0:03:01.2]} 7... Bg7 {[%clk 0:02:46.8]} 8. O-O {[%clk 0:02:59.8]}
8... O-O {[%clk 0:02:46.2]} 9. Nbc3 {[%clk 0:03:00.4]} 9... e5 {[%clk
0:02:37.1]} 10. h3 {[%clk 0:02:31.8]} 10... Qb6 {[%clk 0:02:20.5]} 11. Na4
{[%clk 0:01:54.9]} 11... Qa5 {[%clk 0:02:06.2]} 12. Bd2 {[%clk 0:01:44.1]} 12...
Qc7 {[%clk 0:01:45.5]} 13. Rc1 {[%clk 0:01:38.6]} 13... Qe7 {[%clk 0:01:31.3]}
14. d5 {[%clk 0:01:19.3]} 14... Nd4 {[%clk 0:01:20.1]} 15. Nxd4 {[%clk
0:00:50.6]} 15... exd4 {[%clk 0:01:21]} 16. b3 {[%clk 0:00:49.8]} 16... Re8
{[%clk 0:00:51]} 17. Re1 {[%clk 0:00:47.9]} 17... Bd7 {[%clk 0:00:45]} 18. Nb2
{[%clk 0:00:47.6]} 18... Bb5 {[%clk 0:00:44.7]} 19. a4 {[%clk 0:00:39.6]} 19...
Ba6 {[%clk 0:00:44.9]} 20. b4 {[%clk 0:00:36.5]} 20... b6 {[%clk 0:00:41.8]} 21.
b5 {[%clk 0:00:35.9]} 21... Bb7 {[%clk 0:00:41.8]} 22. Bb4 {[%clk 0:00:35.2]}
22... Nd7 {[%clk 0:00:41.1]} 23. Nc4 {[%clk 0:00:28.6]} 23... Nc5 {[%clk
0:00:39.5]} 24. a5 {[%clk 0:00:26.8]} 24... Rad8 {[%clk 0:00:38.4]} 25. axb6
{[%clk 0:00:26.2]} 25... axb6 {[%clk 0:00:38]} 26. Nxb6 {[%clk 0:00:26.5]} 26...
Qc7 {[%clk 0:00:35.6]} 27. Na4 {[%clk 0:00:22.9]} 27... f5 {[%clk 0:00:30.3]}
28. Nxc5 {[%clk 0:00:20.6]} 28... dxc5 {[%clk 0:00:29.8]} 29. Bxc5 {[%clk
0:00:21.5]} 29... Qa5 {[%clk 0:00:28.6]} 30. Qb3 {[%clk 0:00:15.2]} 30... fxe4
{[%clk 0:00:23.6]} 31. Rxe4 {[%clk 0:00:13.6]} 31... Rxe4 {[%clk 0:00:20.6]} 32.
Bxe4 {[%clk 0:00:14.5]} 32... Qd2 {[%clk 0:00:18.5]} 33. Rd1 {[%clk 0:00:14.1]}
33... Qe2 {[%clk 0:00:18.4]} 34. d6+ {[%clk 0:00:12.7]} 34... Kh8 {[%clk
0:00:18]} 35. Bxb7 {[%clk 0:00:13]} 35... Rf8 {[%clk 0:00:17.5]} 36. Rf1 {[%clk
0:00:11.2]} 36... d3 {[%clk 0:00:17.8]} 37. Bg2 {[%clk 0:00:09.9]} 37... d2
{[%clk 0:00:17.8]} 38. Be3 {[%clk 0:00:09.5]} 38... Rd8 {[%clk 0:00:15.3]} 39.
Rd1 {[%clk 0:00:08.5]} 39... Rxd6 {[%clk 0:00:15.3]} 40. Kh2 {[%clk 0:00:07.4]}
40... h5 {[%clk 0:00:15.5]} 41. Qc2 {[%clk 0:00:07.2]} 41... Kh7 {[%clk
0:00:14.1]} 42. Rxd2 {[%clk 0:00:07.4]} 42... Qxb5 {[%clk 0:00:14.1]} 43. Rxd6
{[%clk 0:00:07.3]} 1-0